Cogmind - Beta 11.1 --- EXPLORER MODE // 2022.11.08 @ 18:47:21 Player: darlorth Result: Self-destructed Performance ------------- Evolutions (3) 1500 Regions Visited (6) 1200 Robots Destroyed (97) 485 Value Destroyed (2359) 2359 Prototype IDs (5) 100 Alien Tech Used (0) 0 Bonus (-77) -77 TOTAL SCORE: 5567 Bonus ------- High Alert Combat Kills 27 Follower Combat Kills 66 Friendly Fire -170 Cogmind --------- Core Integrity 683/700 Matter 300/300 Energy 150/150 System Corruption 0% Temperature Cool (0) Movement Flying (112) Ox1 Location -7/Factory Parts ------- > --- POWER (1) -------- Micro Nuclear Core > --- PROPULSION (6) --- Flight Unit Flight Unit Cesium-ion Thruster > --- UTILITY (5) ------ Medium Storage Unit Hacking Suite Hacking Suite System Shield > --- WEAPON (2) ------- Heavy Hammer Katana > --- INVENTORY (10) --- Light Deuterium Engine Xenon Bombardment Thruster Cooling System Compact Battery (200) Advanced Weight Redist. System Advanced Visual Processing Unit Reaction Control System Layered Light Armor Plating Mini Grenade Launcher Improved Datajack Peak State ------------ > --- POWER ------------ Micro Nuclear Core > --- PROPULSION ------- Flight Unit Flight Unit Cesium-ion Thruster Cesium-ion Thruster Cesium-ion Thruster Cesium-ion Thruster > --- UTILITY ---------- Medium Storage Unit Advanced Visual Processing Unit Layered Light Armor Plating Hacking Suite Hacking Suite > --- WEAPON ----------- Heavy Hammer Katana > --- INVENTORY -------- Light Deuterium Engine Xenon Bombardment Thruster Cooling System Compact Battery Advanced Weight Redist. System Advanced Visual Processing Unit Reaction Control System Improved Medium Armor Plating Mini Grenade Launcher Datajack [Rating: 39] Favorites ----------- Power Cooled Ion Engine Engine Cooled Ion Engine Power Core Micro Nuclear Core Propulsion Light Treads Treads Light Treads Leg Aluminum Leg Hover Unit Improved Hover Unit Flight Unit Cesium-ion Thruster Utility Transport Network Coupler Device Heat Sink Storage Medium Storage Unit Processor Transport Network Coupler Hackware Hacking Suite Protection Weapon Shielding Weapon Advanced Beam Cannon Energy Gun Improved EM Shotgun Energy Cannon Advanced Beam Cannon Ballistic Gun Light Assault Rifle Launcher Grenade Launcher Special Weapon Plasma Flamer Impact Weapon Heavy Hammer Slashing Weapon Mining Claw Special Melee Weapon Datajack Build | -11 -10 -10 -9 -9 -8 -7 ------- Run | Scr Mat Min Mat Min Mat Fac Slots Evolved 7 | . 1 . 2 . 2 2 Power . | . . . . . . . Propulsion 4 | . 1 . 1 . 1 1 Utility 3 | . . . 1 . 1 1 Weapon . | . . . . . . . Parts Attached 109 | 7 6 3 47 3 36 7 Power 13 | 1 . 1 7 . 3 1 Engine 12 | 1 . 1 7 . 3 . Core 1 | . . . . . . 1 Reactor . | . . . . . . . Propulsion 36 | 2 1 . 13 . 18 2 Treads 18 | . . . 11 . 7 . Leg 9 | 2 1 . 2 . 4 . Wheel . | . . . . . . . Hover 2 | . . . . . 2 . Flight 7 | . . . . . 5 2 Utility 17 | 2 . 1 4 . 7 3 Device 4 | . . 1 1 . 2 . Storage 2 | . . . 1 . 1 . Processor 3 | . . . 1 . 2 . Hackware 4 | . . . . . 2 2 Protection 4 | 2 . . 1 . . 1 Artifact . | . . . . . . . Weapon 43 | 2 5 1 23 3 8 1 Energy Gun 7 | 1 . . 6 . . . Energy Cannon 7 | . . . 2 . 5 . Ballistic Gun 7 | 1 2 . 2 2 . . Ballistic Cannon . | . . . . . . . Launcher 3 | . . 1 1 1 . . Special Weapon 5 | . . . 5 . . . Impact Weapon 2 | . 1 . . . . 1 Slashing Weapon 9 | . 2 . 4 . 3 . Piercing Weapon . | . . . . . . . Special Melee Weapon 3 | . . . 3 . . . Unidentified Prototypes 3 | . . . 3 . . . Parts Lost 17 | . . 1 7 5 . 4 Power 2 | . . 1 1 . . . Propulsion 11 | . . . 4 4 . 3 Utility 3 | . . . 1 1 . 1 Weapon 1 | . . . 1 . . . Highest Loss Streak 4 | . . 1 3 4 . 4 To Critical Strikes 1 | . . . 1 . . . Average Slot Usage (%) 95 | . 99 100 97 75 89 95 Engine 9 | . 12 12 9 10 7 3 Treads 21 | . . . 32 20 26 . Leg 13 | . 36 37 5 . 4 . Flight 2 | . . . . . 3 41 Device 7 | . . 7 9 4 6 . Storage 5 | . . . 8 10 6 7 Processor 7 | . . . 7 10 15 4 Protection 7 | . 25 16 3 . . 2 Energy Gun 1 | . 1 . 3 . . . Energy Cannon 7 | . . . 8 10 13 . Ballistic Gun 1 | . 7 . . 7 . . Launcher 1 | . . 7 . 2 . . Special Weapon 1 | . . . 3 . . . Slashing Weapon 6 | . 14 16 2 . 1 7 Naked Turns . | . . . . . . . Heaviest Build 31 | 8 9 10 27 27 31 25 Greatest Support 100 | 20 30 30 89 86 100 28 Greatest Overweight (x) 5 | 2 . . . 1 5 . Average Overweight (x) . | . . . . . . . Largest Inventory Capacity 10 | 5 5 5 10 10 10 10 Average Capacity 7 | 5 5 5 9 9 8 10 Most Carried 10 | 3 5 5 10 10 10 10 Average Carried 7 | 1 4 4 8 9 8 9 Final Capacity 10 | 5 5 5 10 5 10 10 Final Carried 10 | 1 5 5 10 5 10 10 Class Distribution -------------------- 49% | Scavenger-Mutant 45% | Hacker-Mutant 3% | Hacker-Sprinter Dominant Class ---------------- Hacker-Mutant | -10/Materials Hacker-Mutant | -10/Mines Scavenger-Mutant | -9/Materials Hacker-Mutant | -9/Mines Scavenger-Mutant | -8/Materials Hacker-Sprinter | -7/Factory Resources | -11 -10 -10 -9 -9 -8 -7 ----------- Run | Scr Mat Min Mat Min Mat Fac Matter Collected 1431 | 77 269 55 525 54 381 70 Remotely . | . . . . . . . Salvage Created 3440 | . 327 176 1339 147 1184 267 Parts 201 | . 22 14 86 1 66 12 Haulers Intercepted 11 | . 1 . 4 . 6 . Recyclers Shooed 2 | . . . 2 . . . Parts Field Recycled . | . . . . . . . Retrieved Matter . | . . . . . . . Parts Self-Destructed . | . . . . . . . Prevented . | . . . . . . . Kills | -11 -10 -10 -9 -9 -8 -7 ------- Run | Scr Mat Min Mat Min Mat Fac Combat Hostiles Destroyed 71 | . 5 5 28 15 17 1 Melee 13 | . 5 2 4 . 1 1 Guns 3 | . . . 3 . . . Cannons 33 | . . . 14 5 14 . AOE 19 | . . 3 6 10 . . Classes Destroyed 13 | . 4 2 5 1 1 . Worker 4 | . 1 . 2 . 1 . Builder 1 | . . . 1 . . . Tunneler 3 | . . 1 2 . . . Hauler 13 | . 1 . 6 . 6 . Recycler 5 | . . . 1 1 . 3 Operator 6 | . . . 3 . 2 1 Watcher 9 | . 2 . 5 . 2 . Swarmer 12 | . . 1 7 . 3 1 Grunt 28 | . 5 4 12 . 7 . Brawler 2 | . . . 2 . . . Duelist 1 | . . . . . 1 . Sentry 13 | . . . 7 . 6 . Assembled 15 | . . . . 15 . . Best Kill Streak 16 | . 4 2 8 16 5 4 Combat Bots Only 15 | . 4 2 6 15 4 1 Max Kills in Single Turn 4 | . 1 1 4 4 2 1 Gunslinging . | . . . . . . . Exploded 4 | . . 1 2 4 . . Melee 1 | . 1 1 1 . 1 1 Uniques/NPCs Destroyed . | . . . . . . . Combat | -11 -10 -10 -9 -9 -8 -7 -------- Run | Scr Mat Min Mat Min Mat Fac Damage Taken 2881 | . 142 97 1227 622 605 188 Core 416 | . 41 34 167 87 70 17 Absorbed by Shields . | . . . . . . . Redirected to Shielding 45 | . 12 4 29 . . . Core Remaining (%) 73 | 100 . 70 . 36 87 . Volleys Fired 149 | . 8 3 72 9 57 . Largest 2 | . 2 1 2 2 2 . Hottest 156 | . 40 30 156 136 136 . Shots Fired 258 | . 16 3 112 18 109 . Gun 48 | . 16 . 32 . . . Cannon 164 | . . . 43 12 109 . Launcher 15 | . . 3 6 6 . . Special 31 | . . . 31 . . . Kinetic 17 | . 16 . 1 . . . Thermal 212 | . . . 91 12 109 . Explosive 15 | . . 3 6 6 . . Electromagnetic 14 | . . . 14 . . . Robot Hit Streak 40 | . 3 6 40 14 27 . Robot Miss Streak 7 | . 7 . 2 1 1 . Penetration Max . | . . . . . . . Secondary Targets . | . . . . . . . Shots Hit Robots 271 | . 27 8 123 10 95 8 Core Hits 139 | . 13 7 60 21 34 4 Critical Kills 3 | . . . 1 . 2 . Critical Parts Destroyed . | . . . . . . . Critical Strikes 8 | . . . 6 . 2 . Burn 5 | . . . 5 . . . Meltdown 3 | . . . 1 . 2 . Melee Attacks 94 | . 21 5 28 . 5 35 Impact 20 | . . . . . . 20 Slashing 69 | . 21 5 23 . 5 15 Piercing . | . . . . . . . Sneak Attacks 21 | . 5 1 10 . 2 3 Combat Hostiles 1 | . . . 1 . . . Follow-up Attacks 3 | . 2 . 1 . . . Damage Inflicted 7444 | . 654 272 3045 913 2157 403 Guns 575 | . 55 . 520 . . . Cannons 2768 | . . . 717 164 1887 . Explosions 1805 | . . 127 929 749 . . Melee 1911 | . 599 145 494 . 270 403 Ramming . | . . . . . . . Kinetic 69 | . 55 . 14 . . . Thermal 3873 | . . . 1822 164 1887 . Explosive 1304 | . . 127 428 749 . . Electromagnetic 287 | . . . 287 . . . Impact . | . . . . . . . Slashing 1911 | . 599 145 494 . 270 403 Piercing . | . . . . . . . Highest Corruption 1 | . . . 1 1 . . Average Corruption 1 | . . . 1 1 . . Corruption Purged . | . . . . . . . Corruption Blocked . | . . . . . . . Effects 10 | . . . 9 1 . . Matter Fused 3 | . . . 2 1 . . Energy Discharges 2 | . . . 2 . . . Data Loss (minor) 1 | . . . 1 . . . Data Loss (major) 2 | . . . 2 . . . Misfires 1 | . . . 1 . . . Weapon Failures 1 | . . . 1 . . . Overload Shots . | . . . . . . . Overflow Damage 437 | . 17 17 215 67 59 62 Projectiles 65 | . . . 34 . 31 . Explosions 209 | . . . 142 67 . . Melee 163 | . 17 17 39 . 28 62 Knockbacks . | . . . . . . . Impact . | . . . . . . . Kinetic . | . . . . . . . Secondary . | . . . . . . . Self-Inflicted Damage 216 | . . 5 162 49 . . Shots 8 | . . 1 5 2 . . Rammed . | . . . . . . . Targets Rammed . | . . . . . . . Kicked . | . . . . . . . Crushed . | . . . . . . . Highest Temperature 351 | . . . 162 90 351 122 Average Temperature 63 | . . . 40 39 88 42 Received Heat Transfer 1182 | . 105 78 555 . 414 30 Effects 5 | . . . . . 5 . Interference 5 | . . . . . 5 . Siege Activations . | . . . . . . . Robots Corrupted . | . . . . . . . Combat Hostiles . | . . . . . . . Parts Fried 4 | . . . 4 . . . Impact Corruptions . | . . . . . . . Robots Melted 4 | . . . 2 . 2 . Combat Hostiles 3 | . . . 1 . 2 . Parts Melted 15 | . . . 8 . 7 . Heat Transferred 9064 | . . . 5364 296 3404 . Parts Sabotaged . | . . . . . . . Parts Stolen . | . . . . . . . Parts Stripped . | . . . . . . . Power Chain Reactions 1 | . . . 1 . . . Missiles Intercepted . | . . . . . . . Alert | -11 -10 -10 -9 -9 -8 -7 ------- Run | Scr Mat Min Mat Min Mat Fac Peak Influence 491 | . 142 212 491 105 294 270 Initial 25 | . . 4 . . 25 25 Average 125 | . 31 45 181 52 134 84 Maximum Alert Level 2 | . . 1 2 . 1 1 Low Security (%) 72 | 100 100 87 58 100 68 93 Level 1 22 | . . 12 28 . 31 6 Level 2 5 | . . . 12 . . . Level 3 . | . . . . . . . Level 4 . | . . . . . . . Level 5 . | . . . . . . . High Security . | . . . . . . . Max Security . | . . . . . . . Squads Dispatched 6 | . . . 3 . 3 . Investigation 1 | . . . . . 1 . Extermination . | . . . . . . . Reinforcement 5 | . . . 3 . 2 . Assault . | . . . . . . . Garrison . | . . . . . . . Intercept . | . . . . . . . Searches Triggered . | . . . . . . . Construction Impeded . | . . . . . . . Haulers Reinforced . | . . . . . . . Active Scanning Responses . | . . . . . . . Cargo Convoy Interrupts . | . . . . . . . Stealth | -11 -10 -10 -9 -9 -8 -7 --------- Run | Scr Mat Min Mat Min Mat Fac Distress Signals 8 | . 1 . 5 . 1 1 Communications Jammed . | . . . . . . . Distress Signals . | . . . . . . . Times Spotted 122 | . 10 6 43 17 30 16 Peak Tracking Total 10 | . 4 2 7 8 6 10 Tactical Retreats 9 | . . . 2 1 3 3 Traps | -11 -10 -10 -9 -9 -8 -7 ------- Run | Scr Mat Min Mat Min Mat Fac Traps Triggered 6 | . 1 . 4 . 1 . Indirectly . | . . . . . . . Trap Hack Attempts . | . . . . . . . Triggered . | . . . . . . . Disarmed . | . . . . . . . Reprogrammed . | . . . . . . . Reused . | . . . . . . . Traps Extracted . | . . . . . . . Installed . | . . . . . . . Triggered . | . . . . . . . Machines | -11 -10 -10 -9 -9 -8 -7 ---------- Run | Scr Mat Min Mat Min Mat Fac Machines Disabled 7 | . . 2 5 . . . Max in Single Turn 3 | . . 1 3 . . . Machines Sabotaged . | . . . . . . . Garrisons Compromised . | . . . . . . . Overloaded Fab Kills . | . . . . . . . Hacking | -11 -10 -10 -9 -9 -8 -7 --------- Run | Scr Mat Min Mat Min Mat Fac Machines Accessed 15 | . 5 . 5 . 3 2 Terminals 12 | . 5 . 4 . 1 2 Fabricators . | . . . . . . . Repair Stations . | . . . . . . . Recycling Units 1 | . . . . . 1 . Scanalyzers 2 | . . . 1 . 1 . Garrison Access . | . . . . . . . Total Hacks 44 | . 14 . 13 . 11 6 Successful 31 | . 9 . 10 . 7 5 Failed 13 | . 5 . 3 . 4 1 Catastrophic . | . . . . . . . Database Lockouts . | . . . . . . . Manual 27 | . 11 . 6 . 5 5 Terminals 31 | . 14 . 6 . 5 6 Fabricators . | . . . . . . . Repair Stations . | . . . . . . . Recycling Units 3 | . . . . . 3 . Scanalyzers 10 | . . . 7 . 3 . Garrison Access . | . . . . . . . Terminal Hacks 17 | . 8 . 2 . 3 4 Part Schematic 4 | . 2 . 1 . . 1 Prototype ID Bank 1 | . 1 . . . . . Open DSF 1 | . . . . . . 1 Branch Access Points 1 | . 1 . . . . . Terminal Index 2 | . 1 . . . . 1 Unreport Threat 1 | . 1 . . . . . Locate Traps 1 | . 1 . . . . . Dispatch Records 1 | . . . . . . 1 Surveillance Status 1 | . 1 . . . . . Hauler Manifests 1 | . . . . . 1 . Registered Components 1 | . . . . . 1 . Registered Prototypes 1 | . . . . . 1 . Zone Layout 1 | . . . 1 . . . Fabricator Hacks . | . . . . . . . Repair Station Hacks . | . . . . . . . Recycling Unit Hacks 1 | . . . . . 1 . Retrieve Components 1 | . . . . . 1 . Scanalyzer 10 | . . . 7 . 3 . Insert Component 4 | . . . 3 . 1 . Analyze 6 | . . . 4 . 2 . Garrison Access Hacks . | . . . . . . . Unauthorized Hacks 3 | . 1 . 1 . . 1 Terminals 3 | . 1 . 1 . . 1 Assimilate 1 | . . . 1 . . . Botnet 1 | . 1 . . . . . Operators 1 | . . . . . . 1 Fabricators . | . . . . . . . Repair Stations . | . . . . . . . Recycling Units . | . . . . . . . Scanalyzers . | . . . . . . . Garrison Access . | . . . . . . . Data Cores Recovered 2 | . . . . . 1 1 Used 1 | . . . . . . 1 Hacking Detections 11 | . 4 . 3 . 3 1 Full Trace Events 1 | . . . . . 1 . Feedback Events . | . . . . . . . Feedback Blocked . | . . . . . . . Robot Schematics Acquired . | . . . . . . . Robots Built . | . . . . . . . Authchips . | . . . . . . . Time . | . . . . . . . Total Robot Build Rating . | . . . . . . . Part Schematics Acquired 7 | . 2 . 4 . . 1 Parts Built . | . . . . . . . Authchips . | . . . . . . . Time . | . . . . . . . Total Part Build Rating . | . . . . . . . Parts Repaired . | . . . . . . . Time . | . . . . . . . Parts Recycled . | . . . . . . . Recycled Matter . | . . . . . . . Retrieved Matter . | . . . . . . . Retrieved Components . | . . . . . . . Parts Scanalyzed 4 | . . . 3 . 1 . Part Schematics Acquired 3 | . . . 3 . . . Parts Damaged . | . . . . . . . Bothacking | -11 -10 -10 -9 -9 -8 -7 ------------ Run | Scr Mat Min Mat Min Mat Fac Used RIF Installer . | . . . . . . . Robots Hacked . | . . . . . . . Non-combat . | . . . . . . . Combat . | . . . . . . . Robot Hacks Applied . | . . . . . . . Relay Couplers Released . | . . . . . . . Fabnet Peak Effective % . | . . . . . . . Robots Rewired 4 | . . . 4 . . . Allies Hacked . | . . . . . . . Hacks Repelled . | . . . . . . . Allies | -11 -10 -10 -9 -9 -8 -7 -------- Run | Scr Mat Min Mat Min Mat Fac Total Allies 4 | . . . 4 . . . Largest Group 2 | . . . 2 . . . Highest-Rated Group 26 | . . . 26 . . . Highest-Rated Ally 15 | . . . 15 . . . Total Orders . | . . . . . . . Ally Attacks 4 | . . . 4 . . . Total Damage 85 | . . . 85 . . . Kills 2 | . . . 2 . . . Allies Corrupted . | . . . . . . . Allies Melted 1 | . . . 1 . . . Intel | -11 -10 -10 -9 -9 -8 -7 ------- Run | Scr Mat Min Mat Min Mat Fac Robot Analysis Total . | . . . . . . . Derelict Logs Recovered 2 | . . 2 . . . . Drone Launches . | . . . . . . . Drone Recoveries . | . . . . . . . Exploration | -11 -10 -10 -9 -9 -8 -7 ------------- Run | Scr Mat Min Mat Min Mat Fac Turns Passed 5521 | 64 736 689 2483 111 1236 202 Spaces Moved 3780 | 47 530 537 1337 43 872 414 Core 77 | 32 . . . 4 41 . Treads 1558 | . . . 1116 39 403 . Legs 1464 | 15 530 537 221 . 161 . Wheels . | . . . . . . . Hover 1 | . . . . . 1 . Flight 680 | . . . . . 266 414 Fastest Speed 21 | 50 120 120 120 50 24 21 Average Speed 119 | 106 120 120 153 179 111 21 Slowest Speed 455 | 150 120 120 160 240 455 21 Overloaded Moves . | . . . . . . . Propulsion Burnouts . | . . . . . . . Robots Hopped 1 | . . . . . 1 . Cave-ins Triggered . | . . . . . . . Exploration Rate (%) 50 | 4 69 97 92 12 69 10 Regions Visited 6 Branch Regions 2 Pre-discovered Areas . | . . . . . . . Known Exits Taken 6 | 1 1 1 1 1 1 . Unknown Exits Taken . | . . . . . . . Scrap Searched 1 | . . 1 . . . . Spaces Dug 16 | . . . 1 . . 15 Terrain Destroyed 168 | . . 23 82 48 . 15 Melee 16 | . . . 1 . . 15 Projectile . | . . . . . . . AOE 152 | . . 23 81 48 . . Terrain Rammed . | . . . . . . . Walls Destroyed . | . . . . . . . Machines Disabled . | . . . . . . . Actions | -11 -10 -10 -9 -9 -8 -7 --------- Run | Scr Mat Min Mat Min Mat Fac Total 4353 | 61 580 568 1590 58 1016 480 Wait 100 | . 6 16 61 . . 17 Move 3772 | 46 529 536 1336 42 869 414 Hop 1 | . . . . . 1 . Pick Up 72 | 8 7 3 26 . 23 5 Fast Attach 32 | . 4 . 10 . 13 5 Attach 37 | 7 2 1 11 . 14 2 Detach 3 | . . . . . 2 1 Swap 40 | . . 2 26 3 9 . Drop 64 | . 6 2 22 4 23 7 Fire 149 | . 8 3 72 9 57 . Melee 83 | . 18 5 26 . 5 29 Ram . | . . . . . . . Kick . | . . . . . . . Crush . | . . . . . . . Escape Stasis . | . . . . . . . Rewire . | . . . . . . . Trap . | . . . . . . . Miscellaneous . | . . . . . . . Route ------- -11/Scrapyard -10/Materials (discovered 4 exits: *Mat x2 / *Min x2) -10/Mines (discovered 2 exits: *Mat x2) -9/Materials (discovered 6 exits: *Mat x3 / *Min / *Sto x2) -9/Mines -8/Materials (discovered 2 exits: *Fac x2) -7/Factory History --------- Turn | Location | Event 15 | -11/Scrapyard | Identified exit to Materials 15 | -11/Scrapyard | Discovered exit to Materials (range 16) 65 | -11/Scrapyard | Entered Materials 65 | -10/Materials | Evolved 1 slot: Propulsion x1 175 | -10/Materials | Identified exit to Materials 175 | -10/Materials | Discovered exit to Materials (range 10) 310 | -10/Materials | Build established: Hacker-Mutant 419 | -10/Materials | Discovered exit to Materials (range 16) 470 | -10/Materials | Identified exit to Mines 801 | -10/Materials | Entered Mines 857 | -10/Mines | Learned Materials interactive machine intel 889 | -10/Mines | Learned 2 Materials zone layouts 1233 | -10/Mines | Discovered exit to Materials (range 11) 1235 | -10/Mines | Discovered exit to Materials (range 9) 1322 | -10/Mines | A weapon hastily lodged in a ceiling crevice suddenly fell to the ground 1490 | -10/Mines | Entered Materials 1490 | -9/Materials | Evolved 2 slots: Propulsion x1, Utility x1 1492 | -9/Materials | Loaded intel: 17 interactive machine locations 1731 | -9/Materials | Identified exit to Mines 1731 | -9/Materials | Discovered exit to Mines (range 11) 1900 | -9/Materials | Lost 3 parts (2n1u) 2341 | -9/Materials | Identified exit to Materials 2341 | -9/Materials | Discovered exit to Materials (range 15) 2939 | -9/Materials | Discovered exit to Materials (range 13) 3194 | -9/Materials | Build established: Scavenger-Mutant 3267 | -9/Materials | Identified exit to Storage 3267 | -9/Materials | Discovered exit to Storage (range 9) 3502 | -9/Materials | Discovered exit to Storage (range 8) 3740 | -9/Materials | Discovered exit to Materials (range 12) 3973 | -9/Materials | Entered Mines 3993 | -9/Mines | Discovered exit to Materials (range 12) 3997 | -9/Mines | Assembled infested the area 4019 | -9/Mines | Core integrity fell below 50% 4059 | -9/Mines | Destroyed 15 combat bots 4060 | -9/Mines | Lost 4 parts (3n1u) 4084 | -9/Mines | Entered Materials 4084 | -8/Materials | Evolved 2 slots: Propulsion x1, Utility x1 4533 | -8/Materials | Identified exit to Factory 4533 | -8/Materials | Discovered exit to Factory (range 16) 5004 | -8/Materials | Discovered exit to Factory (range 15) 5320 | -8/Materials | Entered Factory 5320 | -7/Factory | Evolved 2 slots: Propulsion x1, Utility x1 5522 | -7/Factory | Self-destructed Last Messages --------------- >>Trojan(Operators) Trojan loaded successfully. Testing... Operator tracking enabled and active. 05484_ Connecting with Terminal... 05487_ K-01 Serf collects debris. 05508_ W-25 Informer distress signal alerts nearby ally. 05508_ Connecting with DSF Access... 05509_ T-07 Excavator is excavating. 05510_ K-01 Serf collects debris. 05511_ Hacking Suite destroyed. 05512_ S-27 Virus destroyed. 05513_ T-07 Excavator is excavating. 05514_ K-01 Serf collects debris. 05517_ Destroyed VTOL Module. 05517_ T-07 Excavator is excavating. 05517_ Cesium-ion Thruster destroyed. 05519_ K-01 Serf collects debris. 05519_ Destroyed VTOL Module. 05521_ Cesium-ion Thruster destroyed. Map ----- +----------------------------------------------------+ | ?????????????????????????????????????????????????? | | ?????????????????????????????????????????????????? | | ?????????????????????????????????????????????????? | | ?????????????????????????????????????????????????? | | ?????????????????????????????????????????????????? | | ?????????????????????????????????????????????????? | | ?????????????????????????????????????????????????? | | ?????????????????????????????????????????????????? | | ?????????????????????????????????????????????????? | | ?????????????????????????????????????????????????? | | ?????????????????????????????????????????????????? | | ?????????????????????????????????????????????????? | | ?????????????????????????????????????????????????? | | ?????????????????????????????????????????????????? | | ?????????????????????????????????????????????????? | | ?????????????????????????????????????????????????? | | ????????????????????????###########??????????????? | | ?????????????#######+#### #??##??????????? | | ???????????? u ### ##?????????? | | ?????????????t u ????????? | | ??????????????? ^ T ????????? | | ????????????????? "" ?????????? | | ??????????????????? u ????????? | | ????????????????????? s k ??????????? | | ??????????????????????? k #??????????????? | | ????????????????????????#@[ #??????????????? | | ????????????????????????## #???????????????? | | ?????????????????????????# s #???????????????? | | ?????????????????????????# #???????????????? | | ?????????????????????????# s t #???????????????? | | ?????????????????????????# s ##??????????????? | | ?????????????????????????# T#??????????????? | | ?????????????????????????# #??????????????? | | ????????????????????????## ##??????????????? | | ???????????????????????+ #???????????????? | | ???????????????????????######+##w####????????????? | | ???????????????????????# #????????????? | | ???????????????????????# #????????????? | | ???????????????????????# #????????????? | | ???????????????????????# #????????????? | | ???????????????????????# #????????????? | | ???????????????????????# #????????????? | | ???????????????????????# #????????????? | | ???????????????????????# #????????????? | | ???????????????????????# #????????????? | | ???????????????????????# #????????????? | | ???????????????????????# #????????????? | | ???????????????????????# #????????????? | | ???????????????????????####+#########????????????? | | ??????????????????????????# #????????????????????? | +----------------------------------------------------+ Best States ------------- Heat Dissipation 38 Energy Generation 15 Energy Capacity 280 Matter Stores 300 Matter Capacity 300 Sight Range 20 Robot Scan Range 15 Terrain Scan Range 16 Terrain Scan Density 10 Armor Coverage 150 Resistance: KI 35 Resistance: TH 35 Resistance: EX 35 Resistance: EM 35 Resistance: I 35 Resistance: S 35 Resistance: P 35 Power Shielding 33 Weapon Shielding 33 Evasion (%) 65 Melee Accuracy 5 Recoil Reduction 5 Offensive Hacking 50 Defensive Hacking 10 Item Schematics ----------------- Lrg. Storage Unit | -10/Materials | Hacked Flight Unit | -10/Materials | Hacked Adv. Beam Cannon | -9/Materials | Scanalyzed Mni. Grenade Launcher | -9/Materials | Scanalyzed Weight Redist. System | -9/Materials | Scanalyzed Imp. Hover Unit | -9/Materials | Hacked Imp. Hacking Suite | -7/Factory | Hacked Robot Schematics ------------------ None Fabricated ------------ Nothing Alien Tech Used ----------------- None Achievements -------------- None Challenges ------------ None Game ------ Seed AntigravClaymoresRailgun Manual? 0 Play Time 01:04:14 Cumulative 266.5 hours Start 2022.11.08 @ 17:29:28 End 2022.11.08 @ 18:47:21 Sessions 1 Manual Loads 0 Difficulty Explorer Special Mode None Game No. 271 Rogue 119 Adventurer 81 Explorer 71 Win Type - Total 15 Types 13/0/2/0/0/0/0/0/0 Lore% 44 Gallery% 74 Achievement% 60 Wizard Run 0 Options --------- ASCII 0 Keyboard 0 Movement Mouse Keybinds 0 Fullscreen 1 Font 12/Tallcaps Map View 83x54 Tactical HUD 1 Map Filters NONE Filters NONE Steam 1 RUN: ce9b37c0-4cb3-4b75-8830-dfb40179b7f2